fUST/lending_fUST_20250523
["ID","MTS","AMOUNT","RATE_DAILY","PERIOD"]
[362018559,1747937451556,-212.872959,0.00021917,2]
[362018561,1747937451565,-212.872959,0.00021917,2]
[362018563,1747937451575,-803.595503,0.00021917,2]
[362018565,1747937451584,-212.872959,0.00021917,2]
[362018567,1747937451594,-803.595503,0.00021917,2]
[362018569,1747937451604,-803.595503,0.00021917,2]
[362018571,1747937451613,-212.872959,0.00021917,2]
[362018573,1747937451623,-803.595503,0.00021917,2]
[362018575,1747937451632,-212.872959,0.00021917,2]
[362018577,1747937451642,-803.595503,0.00021917,2]
[362018579,1747937451651,-803.595503,0.00021917,2]
[362018581,1747937451662,-803.595503,0.00021917,2]
[362018583,1747937451672,-803.595503,0.00021917,2]
[362018585,1747937451681,-151.0,0.00021917,2]
[362018587,1747937451690,-803.595503,0.00021917,2]
[362018589,1747937451700,-803.595504,0.00021917,2]
[362018591,1747937451711,-199.373867,0.00021917,2]
[362018594,1747937451721,-500.0,0.00021917,2]
[362018596,1747937451731,-500.0,0.00021917,2]
[362018598,1747937451741,-500.0,0.00021917,2]
[362018599,1747937451751,-500.0,0.00021917,2]
[362018602,1747937451761,-151.0,0.00021917,2]
[362018603,1747937451771,-151.0,0.00021917,2]
[362018606,1747937451781,-151.0,0.00021917,2]
[362018608,1747937451790,-305.449919,0.00021917,2]
[362018610,1747937451801,-500.0,0.00021917,2]
[362018612,1747937451810,-305.449919,0.00021917,2]
[362018614,1747937451820,-500.0,0.00021917,2]
[362018615,1747937451831,-305.449919,0.00021917,2]
[362018618,1747937451841,-395.63720593,0.00021917,2]
[362018620,1747937451851,-305.449919,0.00021917,2]
[362018622,1747937451860,-305.449919,0.00021917,2]
[362018624,1747937451870,-305.449919,0.00021917,2]
[362018626,1747937451880,-305.449919,0.00021917,2]
[362018628,1747937451890,-305.449919,0.00021917,2]
[362018630,1747937451899,-305.449919,0.00021917,2]
[362018632,1747937451909,-305.449914,0.00021917,2]
[362018634,1747937451919,-500.0,0.00021917,2]
[362018636,1747937451928,-500.0,0.00021917,2]
[362018638,1747937451938,-500.0,0.00021917,2]
[362018640,1747937451947,-500.0,0.00021917,2]
[362018642,1747937451957,-151.0,0.00021918,2]
[362018644,1747937451969,-151.0,0.00021918,2]
[362018646,1747937451985,-151.0,0.00021918,2]
[362018648,1747937451995,-151.0,0.00021918,2]
[362018650,1747937452004,-151.0,0.00021918,7]
[362018652,1747937452014,-151.0,0.00021918,7]
[362018654,1747937452025,-161.208878,0.00021918,7]
[362018656,1747937452034,-161.208878,0.00021918,7]
[362018658,1747937452043,-151.0,0.00021918,7]
[362018660,1747937452054,-151.0,0.00021918,7]
[362018662,1747937452063,-500.0,0.00021918,2]
[362018664,1747937452073,-500.0,0.00021918,2]
[362018666,1747937452082,-500.0,0.00021918,2]
[362018668,1747937452092,-500.0,0.00021918,2]
[362018670,1747937452101,-500.0,0.00021918,2]
[362018671,1747937452111,-500.0,0.00021918,2]
[362018673,1747937452120,-500.0,0.00021918,2]
[362018675,1747937452129,-152.16127339,0.00021918,2]
[362018677,1747937452139,-500.0,0.00021918,2]
[362018679,1747937452148,-500.0,0.00021918,2]
[362018682,1747937452158,-1124.529407,0.00021918,7]
[362018683,1747937452167,-1124.529407,0.00021918,7]
[362018685,1747937452177,-500.0,0.00021918,2]
[362018687,1747937452187,-450.0,0.00021918,2]
[362018689,1747937452196,-500.0,0.00021918,2]
[362018691,1747937452205,-500.0,0.00021918,2]
[362018693,1747937452214,-500.0,0.00021918,2]
[362018696,1747937452224,-500.0,0.00021918,2]
[362018698,1747937452236,-500.0,0.00021918,2]
[362018700,1747937452245,-692.478009,0.00021918,7]
[362018702,1747937452255,-692.478009,0.00021918,7]
[362018704,1747937452265,-204.434991,0.00021918,7]
[362018706,1747937452274,-204.434991,0.00021918,7]
[362018708,1747937452284,-212.872959,0.00021918,7]
[362018710,1747937452294,-212.872959,0.00021918,7]
[362018712,1747937452304,-2961.86232652,0.0002193,2]
[362018714,1747937452314,-500.0,0.00021944,2]
[362018716,1747937452324,-2717.99,0.00021959,2]
[362018718,1747937452333,-1248.89,0.00021959,2]
[362018720,1747937452342,-1231.12,0.00021959,2]
[362018722,1747937452351,-430.0,0.00021959,2]
[362018724,1747937452361,-3114.31,0.00021959,2]
[362018726,1747937452370,-6202.28,0.00021959,2]
[362018728,1747937452380,-869.75,0.00021959,2]
[362018729,1747937452389,-430.0,0.00021959,2]
[362018732,1747937452399,-2313.92,0.00021959,2]
[362018733,1747937452409,-723.28,0.00021959,2]
[362018736,1747937452419,-1963.66,0.00021959,2]
[362018738,1747937452429,-430.0,0.00021959,2]
[362018740,1747937452439,-927.6,0.00021959,2]
[362018742,1747937452448,-1019.25,0.00021959,2]
[362018744,1747937452458,-1494.4,0.00021959,2]
[362018746,1747937452467,-430.0,0.00021959,2]
[362018748,1747937452476,-430.0,0.00021959,2]
[362018750,1747937452486,-1033.98,0.00021959,2]
[362018752,1747937452496,-551.4,0.00021959,2]
[362018753,1747937452506,-1443.52,0.00021959,2]
[362018756,1747937452516,-488.57,0.00021959,2]
[362018758,1747937452526,-2663.27909513,0.00021969,6]
[362018760,1747937452536,-12616.7021502,0.00021969,2]
[362018762,1747937452545,-500.0,0.00021972,2]
[362018764,1747937452556,-500.0,0.00021973,2]
[362018766,1747937452565,-638.20879264,0.00021973,2]
[362018768,1747937452575,-500.0,0.00021973,2]
[362018770,1747937452585,-500.0,0.00021973,2]
[362018772,1747937452595,-500.0,0.00021973,2]
[362018774,1747937452604,-522.46317688,0.00021973,2]
[362018787,1747937452721,-500.0,0.00021973,2]
[362018790,1747937452738,-500.0,0.00021973,2]
[362018792,1747937452749,-500.0,0.00021973,2]
[362018794,1747937452759,-348.21373779,0.00021999,2]
[362018796,1747937452768,-2000.0,0.00022,2]
[362018798,1747937452777,-2034.23,0.00022,2]
[362018800,1747937452787,-779.8,0.00022003,2]
[362018802,1747937452796,-1985.59,0.00022003,2]
[362018804,1747937452805,-160.0,0.00022053,2]
[362018805,1747937452815,-160.0,0.00022053,2]
[362018807,1747937452825,-422.78357425,0.00022056,2]
[362018809,1747937452835,-212.4501065,0.00022056,2]
[362018811,1747937452845,-894.64583333,0.00022056,2]
[362018813,1747937452854,-160.0,0.00022056,2]
[362018815,1747937452863,-160.0,0.00022056,2]
[362018817,1747937452873,-160.0,0.00022056,2]
[362018819,1747937452882,-308.935465,0.00022059,7]
[362018821,1747937452893,-308.935465,0.00022059,7]
[362018823,1747937452902,-336.271223,0.00022059,7]
[362018825,1747937452912,-336.271223,0.00022059,7]
[362018827,1747937452922,-151.0,0.00022059,7]
[362018829,1747937452931,-3204.763029,0.00022059,7]
[362018831,1747937452940,-3204.763029,0.00022059,7]
[362018833,1747937452950,-470.689276,0.00022059,7]
[362018835,1747937452960,-470.689276,0.00022059,7]
[362018837,1747937452973,-151.0,0.00022059,7]
[362018839,1747937452982,-244.844125,0.00022059,7]
[362018841,1747937452992,-244.844125,0.00022059,7]
[362018843,1747937453002,-12645.25887003,0.00022059,2]
[362018845,1747937453012,-1500.0,0.00022068,2]
[362018847,1747937453022,-1500.0,0.00022068,2]
[362018849,1747937453031,-543.47124724,0.00022068,2]
[362018851,1747937453043,-1000.0,0.00022068,2]
[362018853,1747937453052,-3544.988174,0.0002207,2]
[362018855,1747937453062,-719.0,0.00022074,3]
[362018856,1747937453071,-719.0,0.00022074,3]
[362018858,1747937453080,-719.0,0.00022074,3]
[362018860,1747937453090,-152.0,0.00022074,3]
[362018862,1747937453099,-166.0,0.00022074,3]
[362018863,1747937453109,-719.0,0.00022074,3]
[362018864,1747937453118,-166.0,0.00022074,3]
[362018865,1747937453127,-719.0,0.00022074,3]
[362018866,1747937453137,-160.0,0.00022074,3]
[362018867,1747937453146,-258.57859842,0.00022074,3]
[362018868,1747937453155,-160.0,0.00022074,3]
[362018869,1747937453165,-719.0,0.00022074,3]
[362018870,1747937453174,-160.0,0.00022074,3]
[362018871,1747937453183,-719.0,0.00022074,3]
[362018872,1747937453192,-160.0,0.00022074,3]
[362018873,1747937453201,-719.0,0.00022074,3]
[362018875,1747937453211,-151.0,0.00022074,3]
[362018877,1747937453220,-160.0,0.00022074,3]
[362018879,1747937453230,-719.0,0.00022074,3]
[362018881,1747937453239,-151.0,0.00022074,3]
[362018883,1747937453249,-160.0,0.00022074,3]
[362018885,1747937453259,-719.0,0.00022074,3]
[362018888,1747937453268,-151.0,0.00022074,3]
[362018890,1747937453279,-160.0,0.00022074,3]
[362018892,1747937453288,-719.0,0.00022074,3]
[362018894,1747937453298,-151.0,0.00022074,3]
[362018896,1747937453307,-151.0,0.00022074,3]
[362018898,1747937453316,-719.0,0.00022074,3]
[362018900,1747937453326,-151.0,0.00022074,3]
[362018902,1747937453335,-719.0,0.00022074,3]
[362018904,1747937453345,-719.0,0.00022074,3]
[362018906,1747937453354,-719.0,0.00022074,3]
[362018908,1747937453364,-719.0,0.00022074,3]
[362018910,1747937453373,-269.4627899,0.00022074,3]
[362018912,1747937453383,-315.0,0.00022074,3]
[362018915,1747937453397,-315.0,0.00022074,3]
[362018918,1747937453422,-151.0,0.00022089,7]
[362018922,1747937453442,-151.765709,0.00022089,7]
[362018925,1747937453464,-151.0,0.00022089,7]
[362018929,1747937453489,-151.0,0.00022089,7]
[362018932,1747937453508,-151.0,0.00022089,7]
[362018935,1747937453529,-644.92123,0.00022089,7]
[362018938,1747937453548,-644.92123,0.00022089,7]
[362018941,1747937453564,-577.640368,0.00022089,7]
[362018944,1747937453585,-577.640368,0.00022089,7]
[362018947,1747937453608,-779.8,0.00022089,2]
[362018950,1747937453627,-779.8,0.00022089,2]
[362018953,1747937453642,-779.8,0.00022089,2]
[362018956,1747937453664,-779.8,0.00022089,2]
[362018959,1747937453679,-779.95,0.00022089,2]
[362018962,1747937453697,-166.496534,0.00022089,7]
[362018964,1747937453713,-166.496534,0.00022089,7]
[362018967,1747937453730,-1985.59,0.00022089,2]
[362018970,1747937453746,-1985.59,0.00022089,2]
[362018973,1747937453763,-1985.59,0.00022089,2]
[362018975,1747937453779,-1985.59,0.00022089,2]
[362018978,1747937453794,-1985.82851663,0.00022089,2]
[362018981,1747937453810,-271.032321,0.0002209,7]
[362018984,1747937453827,-271.032321,0.0002209,7]
[362018986,1747937453843,-311.527044,0.0002209,7]
[362018989,1747937453859,-311.527044,0.0002209,7]
[362018992,1747937453874,-2961.86232652,0.00022091,2]
[362018995,1747937453895,-430.0,0.00022093,2]
[362018998,1747937453912,-755.29,0.00022093,2]
[362019000,1747937453928,-430.0,0.00022093,2]
[362019003,1747937453945,-430.0,0.00022093,2]
[362019006,1747937453962,-430.0,0.00022093,2]
[362019009,1747937453982,-473.86,0.00022093,2]
[362019011,1747937453999,-430.0,0.00022093,2]
[362019014,1747937454017,-430.0,0.00022093,2]
[362019017,1747937454034,-543.2,0.00022093,2]
[362019020,1747937454052,-221.3,0.00022093,2]
[362019022,1747937454070,-727.06,0.00022093,2]
[362019025,1747937454086,-430.0,0.00022093,2]
[362019028,1747937454103,-430.0,0.00022093,2]
[362019031,1747937454119,-433.59,0.00022093,2]
[362019033,1747937454136,-444.13,0.00022093,2]
[362019035,1747937454153,-430.0,0.00022093,2]
[362019036,1747937454170,-928.04,0.00022093,2]
[362019037,1747937454187,-430.0,0.00022093,2]
[362019038,1747937454204,-4381.58,0.00022093,2]
[362019039,1747937454220,-430.0,0.00022093,2]
[362019040,1747937454236,-953.82,0.00022093,2]
[362019041,1747937454253,-2814.75,0.00022093,2]
[362019042,1747937454270,-430.0,0.00022093,2]
[362019043,1747937454286,-1916.57,0.00022093,2]
[362019044,1747937454296,-2051.68,0.00022093,2]
[362019045,1747937454306,-1029.01,0.00022093,2]
[362019046,1747937454316,-430.0,0.00022093,2]
[362019047,1747937454325,-1345.46,0.00022093,2]
[362019048,1747937454335,-854.7,0.00022093,2]
[362019049,1747937454345,-1268.89,0.00022093,2]
[362019051,1747937454354,-430.0,0.00022093,2]
[362019053,1747937454364,-1006.28,0.00022093,2]
[362019055,1747937454374,-430.0,0.00022093,2]
[362019057,1747937454383,-9816.64,0.00022093,2]
[362019059,1747937454392,-430.0,0.00022093,2]
[362019062,1747937454403,-270.0,0.00022093,2]
[362019064,1747937454414,-430.0,0.00022093,2]
[362019066,1747937454424,-430.0,0.00022093,2]
[362019068,1747937454434,-210.0,0.00022093,2]
[362019070,1747937454444,-1432.41,0.00022093,2]
[362019101,1747937454721,-470.0,0.00022093,2]
[362019105,1747937454758,-944.38,0.00022093,2]
[362019108,1747937454775,-880.15,0.00022093,2]
[362019110,1747937454785,-430.0,0.00022093,2]
[362019112,1747937454795,-210.0,0.00022093,2]
[362019114,1747937454804,-210.0,0.00022093,2]
[362019116,1747937454814,-692.478009,0.00022093,7]
[362019118,1747937454823,-430.0,0.00022093,2]
[362019120,1747937454834,-430.0,0.00022093,2]
[362019122,1747937454843,-692.478009,0.00022093,7]
[362019124,1747937454852,-633.5,0.00022093,2]
[362019126,1747937454862,-446.82765025,0.00022093,2]
[362019129,1747937454872,-204.434991,0.00022093,7]
[362019131,1747937454882,-430.0,0.00022093,2]
[362019133,1747937454891,-430.0,0.00022093,2]
[362019135,1747937454901,-204.434991,0.00022093,7]
[362019137,1747937454911,-430.0,0.00022093,2]
[362019139,1747937454920,-430.0,0.00022093,2]
[362019141,1747937454930,-430.0,0.00022093,2]
[362019143,1747937454940,-212.872959,0.00022093,7]
[362019145,1747937454950,-430.0,0.00022093,2]
[362019147,1747937454960,-760.18,0.00022093,2]
[362019149,1747937454969,-212.872959,0.00022093,7]
[362019151,1747937454983,-430.0,0.00022093,2]
[362019153,1747937454993,-1811.62,0.00022093,2]
[362019155,1747937455002,-1062.44,0.00022093,2]
[362019157,1747937455013,-1627.43,0.00022093,2]
[362019159,1747937455023,-679.42,0.00022093,2]
[362019161,1747937455032,-430.0,0.00022093,2]
[362019163,1747937455041,-2910.52,0.00022093,2]
[362019165,1747937455051,-430.0,0.00022093,2]
[362019167,1747937455061,-500.0,0.00022093,2]
[362019169,1747937455071,-430.0,0.00022093,2]
[362019171,1747937455080,-798.79,0.00022093,2]
[362019173,1747937455089,-997.02,0.00022093,2]
[362019175,1747937455098,-1202.01,0.00022093,2]
[362019177,1747937455107,-500.0,0.00022093,2]
[362019178,1747937455116,-2934.9,0.00022093,2]
[362019180,1747937455125,-151.0,0.000221,6]
[362019182,1747937455134,-1000.0,0.000221,2]
[362019184,1747937455144,-1000.0,0.00022121,2]
[362019186,1747937455153,-1000.55131905,0.00022121,2]
[362019189,1747937455163,-370.93978668,0.00022121,2]
[362019191,1747937455172,-1035.25322752,0.00022121,2]
[362019193,1747937455183,-1017.78199319,0.00022121,2]
[362019195,1747937455193,-417.96462809,0.00022121,2]
[362019197,1747937455203,-1200.0,0.00022121,2]
[362019199,1747937455212,-1000.0,0.00022121,2]
[362019201,1747937455222,-1000.0,0.00022121,2]
[362019203,1747937455232,-1000.0,0.00022121,2]
[362019205,1747937455242,-1000.0,0.00022121,2]
[362019207,1747937455251,-1000.0,0.00022121,2]
[362019209,1747937455261,-1000.0,0.00022121,2]
[362019211,1747937455270,-1000.0,0.00022121,2]
[362019213,1747937455279,-1000.0,0.00022121,2]
[362019215,1747937455289,-2663.27909513,0.00022141,6]
[362019217,1747937455298,-430.0,0.00022144,2]
[362019219,1747937455307,-447.56,0.00022144,2]
[362019221,1747937455317,-383.1,0.00022144,2]
[362019223,1747937455326,-793.08,0.00022144,2]
[362019225,1747937455335,-870.97,0.00022144,2]
[362019227,1747937455345,-754.99,0.00022144,2]
[362019229,1747937455354,-2636.85,0.00022144,2]
[362019231,1747937455364,-4193.45,0.00022144,2]
[362019233,1747937455374,-635.81,0.00022144,2]
[362019235,1747937455384,-8839.91,0.00022144,2]
[362019237,1747937455393,-582.0124819,0.00022173,2]
[362019239,1747937455402,-500.0,0.00022173,2]
[362019241,1747937455412,-500.0,0.00022173,2]
[362019243,1747937455422,-500.0,0.00022173,2]
[362019245,1747937455431,-500.0,0.00022173,2]
[362019247,1747937455440,-500.0,0.00022173,2]
[362019249,1747937455449,-500.0,0.00022173,2]
[362019251,1747937455459,-500.0,0.00022173,2]
[362019253,1747937455469,-500.0,0.00022173,2]
[362019255,1747937455479,-503.70525022,0.00022173,2]
[362019258,1747937455488,-500.0,0.00022173,2]
[362019260,1747937455497,-500.0,0.00022173,2]
[362019262,1747937455507,-501.34430196,0.00022173,2]
[362019264,1747937455516,-500.08770423,0.00022173,2]
[362019266,1747937455526,-500.0,0.00022173,2]
[362019268,1747937455535,-152.19365643,0.00022173,2]
[362019270,1747937455544,-500.0,0.00022173,2]
[362019272,1747937455553,-500.0,0.00022173,2]
[362019274,1747937455562,-500.0,0.00022173,2]
[362019276,1747937455571,-500.0,0.00022173,2]
[362019278,1747937455580,-500.0,0.00022173,2]
[362019280,1747937455589,-500.0,0.00022173,2]
[362019282,1747937455598,-500.0,0.00022173,2]
[362019284,1747937455608,-500.0,0.00022173,2]
[362019286,1747937455617,-438.76396021,0.00022173,2]
[362019288,1747937455628,-500.0,0.00022173,2]
[362019290,1747937455637,-500.0,0.00022173,2]
[362019292,1747937455646,-500.0,0.00022173,2]
[362019294,1747937455656,-500.0,0.00022173,2]
[362019296,1747937455666,-525.07549888,0.00022173,2]
[362019298,1747937455675,-500.0,0.00022173,2]
[362019300,1747937455685,-500.0,0.00022173,2]
[362019302,1747937455695,-500.0,0.00022173,2]
[362019304,1747937455704,-500.0,0.00022173,2]
[362019306,1747937455714,-500.0,0.00022173,2]
[362019308,1747937455723,-500.0,0.00022173,2]
[362019310,1747937455734,-470.689276,0.00022188,7]
[362019312,1747937455743,-470.689276,0.00022188,7]
[362019314,1747937455752,-244.844125,0.00022188,7]
[362019316,1747937455762,-244.844125,0.00022188,7]
[362019318,1747937455771,-313.460734,0.00022189,7]
[362019320,1747937455781,-274.446248,0.00022189,7]
[362019322,1747937455790,-151.0,0.00022189,7]
[362019324,1747937455800,-151.0,0.00022189,7]
[362019326,1747937455809,-274.446248,0.00022189,7]
[362019328,1747937455819,-163.931405,0.00022189,7]
[362019330,1747937455828,-166.491313,0.00022189,7]
[362019332,1747937455838,-166.491313,0.00022189,7]
[362019334,1747937455847,-151.0,0.00022189,7]
[362019336,1747937455856,-219.546153,0.00022189,7]
[362019338,1747937455866,-151.0,0.00022189,2]
[362019340,1747937455875,-151.0,0.00022189,2]
[362019342,1747937455884,-151.0,0.00022189,7]
[362019344,1747937455894,-847.748237,0.00022189,7]
[362019346,1747937455904,-151.0,0.00022189,7]
[362019349,1747937455914,-847.748237,0.00022189,7]
[362019351,1747937455923,-175.64748,0.00022189,7]
[362019353,1747937455933,-175.64748,0.00022189,7]
[362019355,1747937455942,-350.149423,0.00022189,7]
[362019357,1747937455952,-350.149423,0.00022189,7]
[362019358,1747937455961,-151.0,0.00022189,7]
[362019360,1747937455972,-151.0,0.00022189,7]
[362019362,1747937455982,-268.338768,0.00022189,7]
[362019364,1747937455992,-188.2314,0.00022189,7]
[362019366,1747937456001,-188.2314,0.00022189,7]
[362019368,1747937456012,-913.916522,0.00022189,7]
[362019370,1747937456022,-913.916522,0.00022189,7]
[362019372,1747937456031,-151.0,0.00022189,7]
[362019374,1747937456040,-180.696086,0.00022189,7]
[362019377,1747937456053,-342.024035,0.00022189,7]
[362019379,1747937456062,-342.024035,0.00022189,7]
[362019380,1747937456071,-151.0,0.00022189,7]
[362019383,1747937456081,-161.208878,0.00022189,7]
[362019385,1747937456090,-161.208878,0.00022189,7]
[362019386,1747937456099,-151.0,0.00022189,7]
[362019388,1747937456109,-1099.238876,0.00022189,7]
[362019390,1747937456119,-1099.238876,0.00022189,7]
[362019393,1747937456129,-151.0,0.00022189,7]
[362019395,1747937456138,-428.344849,0.00022189,7]
[362019397,1747937456147,-428.344849,0.00022189,7]
[362019399,1747937456157,-151.0,0.00022189,7]
[362019401,1747937456166,-151.0,0.00022189,7]
[362019403,1747937456176,-151.0,0.00022189,7]
[362019405,1747937456185,-375.834213,0.00022189,7]
[362019407,1747937456195,-375.834213,0.00022189,7]
[362019409,1747937456204,-644.92123,0.00022189,7]
[362019411,1747937456214,-644.92123,0.00022189,7]
[362019413,1747937456223,-2660.369704,0.00022189,2]
[362019415,1747937456232,-2660.369704,0.00022189,2]
[362019417,1747937456242,-577.640368,0.00022189,7]
[362019419,1747937456252,-151.0,0.00022189,7]
[362019421,1747937456261,-151.0,0.00022189,7]
[362019423,1747937456270,-577.640368,0.00022189,7]
[362019425,1747937456279,-166.496534,0.00022189,7]
[362019427,1747937456289,-151.0,0.00022189,7]
[362019429,1747937456298,-166.496534,0.00022189,7]
[362019431,1747937456307,-151.0,0.00022189,7]
[362019433,1747937456317,-157.756467,0.00022189,7]
[362019435,1747937456326,-157.756467,0.00022189,7]
[362019437,1747937456335,-151.0,0.00022189,7]
[362019439,1747937456344,-271.911467,0.00022189,7]
[362019441,1747937456354,-992.337153,0.00022189,7]
[362019443,1747937456363,-992.337153,0.00022189,7]
[362019445,1747937456372,-271.032321,0.00022189,7]
[362019447,1747937456381,-271.032321,0.00022189,7]
[362019449,1747937456391,-2457.758837,0.00022189,7]
[362019451,1747937456400,-2457.758837,0.00022189,7]
[362019453,1747937456409,-151.0,0.00022189,7]
[362019455,1747937456419,-151.0,0.00022189,7]
[362019457,1747937456428,-212.4501065,0.00022189,7]
[362019459,1747937456437,-308.935465,0.00022189,7]
[362019461,1747937456447,-308.935465,0.00022189,7]
[362019463,1747937456456,-308.935465,0.00022189,7]
[362019465,1747937456465,-308.935465,0.00022189,7]
[362019467,1747937456474,-336.271223,0.00022189,7]
[362019469,1747937456483,-336.271223,0.00022189,7]
[362019471,1747937456493,-311.527044,0.00022189,7]
[362019473,1747937456502,-336.271223,0.00022189,7]
[362019475,1747937456512,-336.271223,0.00022189,7]
[362019477,1747937456521,-311.527044,0.00022189,7]
[362019479,1747937456530,-1124.529407,0.00022189,7]
[362019481,1747937456539,-1124.529407,0.00022189,7]
[362019483,1747937456548,-3204.763029,0.00022189,7]
[362019485,1747937456558,-3204.763029,0.00022189,7]
[362019487,1747937456567,-3204.763029,0.00022189,7]
[362019489,1747937456576,-3204.763029,0.00022189,7]
[362019491,1747937456585,-470.689276,0.00022189,7]
[362019493,1747937456595,-470.689276,0.00022189,7]
[362019495,1747937456604,-151.0,0.00022189,7]
[362019497,1747937456613,-151.0,0.00022189,7]
[362019499,1747937456622,-244.844125,0.00022189,7]
[362019501,1747937456631,-244.844125,0.00022189,7]
[362019503,1747937456640,-692.478009,0.00022189,7]
[362019505,1747937456649,-692.478003,0.00022189,7]
[362019507,1747937456658,-204.434991,0.00022189,7]
[362019509,1747937456668,-204.434991,0.00022189,7]
[362019511,1747937456677,-212.872959,0.00022189,7]
[362019513,1747937456686,-212.872967,0.00022189,7]
[362019515,1747937456695,-192.79876,0.00022191,7]
[362019517,1747937456706,-192.79876,0.00022191,7]
[362019519,1747937456715,-192.79876,0.00022191,7]
[362019521,1747937456724,-151.0,0.00022191,7]
[362019523,1747937456734,-151.0,0.00022191,7]
[362019525,1747937456743,-151.0,0.00022191,7]
[362019527,1747937456753,-151.0,0.00022191,7]
[362019529,1747937456762,-151.0,0.00022191,7]
[362019531,1747937456771,-151.0,0.00022191,7]
[362019533,1747937456780,-151.0,0.00022191,7]
[362019535,1747937456789,-151.0,0.00022191,7]
[362019537,1747937456798,-151.0,0.00022191,7]
[362019539,1747937456807,-151.0,0.00022191,7]
[362019541,1747937456816,-151.0,0.00022191,7]
[362019543,1747937456825,-151.0,0.00022191,7]
[362019545,1747937456836,-151.0,0.00022191,7]
[362019547,1747937456845,-151.0,0.00022191,7]
[362019549,1747937456854,-273.221908,0.00022191,7]
[362019551,1747937456863,-327.968916,0.00022191,7]
[362019553,1747937456872,-327.968916,0.00022191,7]
[362019555,1747937456882,-327.968916,0.00022191,7]
[362019557,1747937456891,-151.0,0.00022191,7]
[362019559,1747937456900,-151.0,0.00022191,7]
[362019561,1747937456909,-151.0,0.00022191,7]
[362019563,1747937456918,-151.0,0.00022191,7]
[362019565,1747937456928,-273.139865,0.00022191,7]
[362019567,1747937456938,-224.107186,0.00022191,7]
[362019569,1747937456947,-224.107186,0.00022191,7]
[362019571,1747937456957,-224.107186,0.00022191,7]
[362019573,1747937456970,-224.107186,0.00022191,7]
[362019575,1747937456980,-307.735337,0.00022191,7]
[362019577,1747937456990,-307.735337,0.00022191,7]
[362019579,1747937457000,-307.735337,0.00022191,7]
[362019581,1747937457010,-307.735337,0.00022191,7]
[362019583,1747937457020,-313.460734,0.00022191,7]
[362019585,1747937457030,-313.460734,0.00022191,7]
[362019587,1747937457041,-274.446248,0.00022191,7]
[362019589,1747937457050,-274.446248,0.00022191,7]
[362019591,1747937457060,-151.0,0.00022191,7]
[362019593,1747937457070,-282.262353,0.00022191,7]
[362019595,1747937457080,-163.931405,0.00022191,7]
[362019597,1747937457090,-274.446248,0.00022191,7]
[362019601,1747937457113,-151.0,0.00022191,7]
[362019603,1747937457124,-274.446248,0.00022191,7]
[362019605,1747937457135,-179.728578,0.00022191,7]
[362019606,1747937457145,-163.931405,0.00022191,7]
[362019607,1747937457155,-163.931405,0.00022191,7]
[362019608,1747937457165,-351.638051,0.00022191,7]
[362019609,1747937457175,-351.638051,0.00022191,7]
[362019610,1747937457185,-351.638051,0.00022191,7]
[362019611,1747937457196,-351.638051,0.00022191,7]
[362019612,1747937457207,-166.491313,0.00022191,7]